bitfinex-derivatives/quotes_SOLF0:USTF0_20250731
["timestamp","ask_amount","ask_price","bid_price","bid_amount"]
[1753956973527,2.97,182.15,182.13,3.03]
[1753956973825,2.97,182.15,182.12,1.90920564]
[1753956973826,2.97,182.15,182.14,3.03]
[1753956974023,6.94546468,182.15,182.14,3.03]
[1753956975234,12.43586468,182.15,182.14,3.03]
[1753956976131,3.97546468,182.15,182.1,1.90920564]
[1753956976334,2.96,182.12,182.11,3.11]
[1753956977638,2.96,182.12,182.05,5.01920564]
[1753956977940,1.90920564,182.09,182.03,1.90920564]
[1753956978131,4.86920564,182.07,182.04,5.4933]
[1753956978539,4.86920564,182.07,182.05,3.11]
[1753956978733,1.90920564,182.09,182.05,5.01920564]
[1753956978938,4.86920564,182.09,182.06,3.11]
[1753956979632,2.96,182.09,182.06,8.6027]
[1753956979833,4.86920564,182.09,182.07,3.11]
[1753956981836,4.86920564,182.09,182.06,3.11]
[1753956981837,1.90920564,182.09,182.06,3.11]
[1753956982139,1.90920564,182.11,182.08,3.11]
[1753956982934,1.90920564,182.11,182.09,5.4918]
[1753956983139,1.90920564,182.11,182.1,3.11]
[1753956983140,4.86920564,182.11,182.1,3.11]
[1753956983535,1.90920564,182.11,182.1,3.11]
[1753956986042,4.86920564,182.11,182.1,3.11]
[1753956987545,2.96,182.12,182.1,3.11]
[1753956987942,2.96,182.12,182.11,3.11]
[1753956988638,1.90920564,182.14,182.11,3.11]
[1753956988844,4.86920564,182.14,182.11,3.11]
[1753956989043,2.96,182.14,182.11,3.11]
[1753956989244,8.4507,182.14,182.11,8.6012]
[1753956989441,8.4507,182.14,182.12,3.11]
[1753956990343,8.4508,182.13,182.12,3.11]
[1753956993046,2.96,182.13,182.06,1.90920564]
[1753956993241,1.90920564,182.11,182.07,3.11]
[1753956993445,8.4519,182.1,182.07,8.6024]
[1753956993744,2.96,182.09,182.08,3.11]
[1753956994747,8.4519,182.1,182.08,3.11]
[1753956997842,5.4919,182.1,182.07,5.4924]
[1753956998151,2.96,182.08,182.05,1.90920564]
[1753956998548,10.36140564,182.09,182.06,5.4929]
[1753956998851,10.36140564,182.09,182.07,3.11]
[1753957002257,4.86920564,182.09,182.07,8.6026]
[1753957002449,4.86920564,182.11,182.08,3.11]
[1753957002952,5.4915,182.11,182.08,3.11]
[1753957003155,8.4515,182.11,182.08,3.11]
[1753957003856,8.4515,182.11,182.08,8.6021]
[1753957004054,2.96,182.1,182.09,3.11]
[1753957004453,8.4515,182.11,182.09,3.11]
[1753957006953,5.4915,182.11,182.09,3.11]
[1753957007160,3.05,182.1,182.09,3.11]
[1753957007960,3.05,182.1,182.06,3.08]
[1753957008160,3.05,182.08,182.05,3.08]
[1753957008660,3.05,182.07,182.06,3.08]
[1753957011362,8.5426,182.08,182.06,3.08]
[1753957014671,3.05,182.15,182.07,3.08]
[1753957014862,4.61164232,182.17,182.13,3.08]
[1753957014863,3.95737311,182.14,182.13,3.08]
[1753957015063,7.00737311,182.14,182.13,3.08]
[1753957015264,12.49817311,182.14,182.13,3.08]
[1753957016571,7.00737311,182.14,182.13,3.08]
[1753957016875,3.95737311,182.14,182.13,3.08]
[1753957018174,7.00737311,182.14,182.13,3.08]
[1753957018676,3.95737311,182.14,182.13,8.5708]
[1753957018864,7.00737311,182.14,182.13,3.08]
[1753957020373,12.49787311,182.14,182.13,3.08]
[1753957020973,8.5413,182.12,182.11,3.08]
[1753957021170,3.95737311,182.12,182.1,3.08]
[1753957021375,3.05,182.11,182.1,3.08]
[1753957022068,7.01843105,182.11,182.1,3.08]
[1753957022269,12.50993105,182.11,182.1,3.08]
[1753957022666,3.96843105,182.11,182.1,3.08]
[1753957023377,3.96843105,182.11,182.1,8.5717]
[1753957023577,3.96843105,182.11,182.1,5.4917]
[1753957023778,3.05,182.14,182.08,2.98530552]
[1753957024278,3.05,182.14,182.09,3.08]
[1753957024479,8.5406,182.14,182.11,5.4912]
[1753957024678,3.05,182.14,182.13,3.08]
[1753957025072,7.01811898,182.14,182.13,3.08]
[1753957025579,12.50861898,182.14,182.13,3.08]
[1753957029782,7.01811898,182.14,182.13,3.08]
[1753957029979,6.14297123,182.2,182.13,3.08]
[1753957029980,4.61164232,182.21,182.13,3.08]
[1753957030282,8.5392,182.19,182.13,3.08]
[1753957030482,3.96716364,182.18,182.16,3.08]
[1753957030682,3.96716364,182.17,182.16,3.08]
[1753957031586,3.96716364,182.17,182.16,8.5699]
[1753957031976,3.05,182.19,182.16,5.4899]
[1753957032181,3.96500147,182.18,182.17,3.08]
[1753957033385,7.01500147,182.18,182.17,3.08]
[1753957033885,12.50430147,182.18,182.17,3.08]
[1753957035178,8.5598,182.17,182.15,3.02]
[1753957035384,3.07,182.16,182.15,3.02]
[1753957036387,8.5599,182.16,182.15,3.02]
[1753957037192,3.07,182.17,182.15,3.02]
[1753957037688,3.07,182.17,182.15,5.4902]
[1753957037882,3.07,182.17,182.16,3.02]
[1753957038285,9.45109964,182.17,182.16,3.02]
[1753957038982,12.52109964,182.17,182.16,3.02]
[1753957039783,12.52109964,182.17,182.12,2.98530552]
[1753957039784,5.4901,182.16,182.15,3.02]
[1753957039988,12.52087537,182.16,182.15,3.02]
[1753957041484,12.52087537,182.16,182.13,8.5107]
[1753957041683,3.07,182.15,182.14,3.02]
[1753957043085,5.4901,182.16,182.13,5.4907]
[1753957043286,3.96062627,182.15,182.09,3.02]
[1753957043488,3.07,182.12,182.09,3.02]
[1753957043688,3.07,182.12,182.1,5.4915]
[1753957043986,3.07,182.12,182.11,3.02]
[1753957049694,8.5609,182.13,182.11,3.02]
[1753957050396,8.5611,182.12,182.11,3.02]
[1753957055489,12.52348347,182.12,182.11,3.02]
[1753957057503,3.07,182.11,182.08,3.02]
[1753957057700,3.07,182.1,182.08,3.02]
[1753957059100,8.5618,182.1,182.08,3.02]
[1753957060396,5.4918,182.1,182.08,3.02]
[1753957061507,8.5618,182.1,182.08,3.02]
[1753957061708,3.07,182.09,182.04,3.02]
[1753957062104,5.4928,182.08,182.04,8.5136]
[1753957062301,3.07,182.07,182.05,3.02]
[1753957062707,8.5628,182.08,182.05,3.02]
[1753957064909,8.5628,182.08,182.05,5.4935]
[1753957065210,8.5628,182.08,182.06,3.05]
[1753957066905,6.16530552,182.13,182.04,3.05]
[1753957067104,3.18,182.11,182.04,3.05]
[1753957067812,5.4922,182.1,182.06,5.493]
[1753957068113,8.6722,182.1,182.07,3.05]
[1753957071915,5.4922,182.1,182.07,3.05]
[1753957072118,3.18,182.09,182.07,3.05]
[1753957072308,8.6724,182.09,182.07,3.05]
[1753957074009,3.18,182.12,182.07,5.4929]
[1753957074211,3.18,182.12,182.08,3.05]
[1753957074613,8.6719,182.11,182.08,3.05]
[1753957076207,8.6721,182.1,182.08,3.05]
[1753957078011,6.16530552,182.11,182.03,2.98530552]
[1753957078206,3.18,182.14,182.08,3.05]
[1753957078413,3.96343228,182.13,182.08,3.05]
[1753957078717,3.96343228,182.12,182.1,3.05]
[1753957078916,3.96343228,182.11,182.1,3.05]
[1753957079218,5.4914,182.13,182.1,3.05]
[1753957079416,5.4915,182.12,182.1,3.05]
[1753957082118,5.4915,182.12,182.11,3.05]
[1753957082314,8.6715,182.12,182.11,3.05]
[1753957083323,12.63783058,182.12,182.11,3.05]
[1753957083521,7.14633058,182.12,182.11,3.05]
[1753957085222,12.63783058,182.12,182.11,3.05]
[1753957094627,12.64296732,182.12,182.11,3.05]
[1753957094828,14.55433129,182.12,182.11,3.05]
[1753957095626,12.64296732,182.12,182.11,3.05]
[1753957095827,14.55433129,182.12,182.11,3.05]
[1753957097530,8.7019,182.11,182.09,2.94]
[1753957098434,10.61346397,182.1,182.09,2.94]
[1753957098833,14.58540765,182.1,182.09,2.94]
[1753957100537,3.21,182.09,182.06,2.94]
[1753957100724,4.62589348,182.13,182.06,2.94]
[1753957100725,3.21,182.07,182.06,2.94]
[1753957101934,8.703,182.07,182.06,2.94]
[1753957102331,1.91136397,182.08,182.04,2.94]
[1753957102531,5.12136397,182.05,182.04,2.94]
[1753957104238,10.61496397,182.05,182.04,2.94]
[1753957104538,7.40496397,182.05,182.04,2.94]
[1753957105541,1.91136397,182.05,182.04,2.94]
[1753957108350,10.61496397,182.05,182.04,2.94]
[1753957109248,1.91136397,182.05,182.04,2.94]
[1753957109842,5.12136397,182.05,182.04,2.94]
[1753957110648,3.21,182.05,182.04,2.94]
[1753957111544,7.40476397,182.06,182.04,2.94]
[1753957111849,10.61476397,182.06,182.04,2.94]
[1753957112445,7.40476397,182.06,182.04,2.94]
[1753957112646,3.21,182.05,182.04,2.94]
[1753957112846,5.12136397,182.05,182.04,2.94]
[1753957115853,1.91136397,182.05,182.04,2.94]
[1753957116648,8.7034,182.06,182.04,2.94]
[1753957116850,3.21,182.08,182.04,2.94]
[1753957117154,4.62589348,182.11,182.07,2.94]
[1753957117155,1.91136397,182.1,182.07,2.94]
[1753957117451,7.40366397,182.1,182.07,2.94]
[1753957117840,7.40366397,182.1,182.07,5.493]
[1753957118041,7.40366397,182.1,182.08,2.94]
[1753957118553,1.91136397,182.1,182.08,8.4327]
[1753957118752,1.91136397,182.1,182.08,5.4927]
[1753957118954,1.91136397,182.1,182.09,2.94]
[1753957119347,7.40346397,182.1,182.09,2.94]
[1753957119846,1.91136397,182.1,182.09,2.94]
[1753957120656,10.61296397,182.12,182.09,5.4924]
[1753957120846,10.61296397,182.12,182.1,2.94]
[1753957121246,7.40296397,182.12,182.1,2.94]
[1753957122852,5.4916,182.12,182.1,2.94]
[1753957124350,5.4918,182.11,182.1,2.94]
[1753957124750,3.21,182.12,182.1,2.94]
[1753957126253,5.4918,182.11,182.1,2.94]
[1753957126552,8.5118,182.11,182.1,2.94]
[1753957128754,5.4916,182.12,182.1,2.94]
[1753957129052,3.02,182.12,182.1,2.94]
[1753957130955,8.5116,182.12,182.1,2.94]
[1753957131153,5.4916,182.12,182.1,2.94]
[1753957131456,3.02,182.11,182.1,2.94]
[1753957132449,8.5116,182.12,182.1,2.94]
[1753957132856,5.4916,182.12,182.1,2.94]
[1753957133053,3.02,182.11,182.1,2.94]
[1753957135455,5.4913,182.13,182.1,2.94]
[1753957135755,3.02,182.12,182.1,2.94]
[1753957136154,8.5115,182.12,182.1,2.94]
[1753957139857,3.02,182.11,182.1,2.94]
[1753957140259,8.5118,182.11,182.1,2.94]
[1753957140460,12.48415493,182.11,182.1,2.94]
[1753957140857,3.02,182.1,182.04,3.08]
[1753957141057,3.97265932,182.09,182.04,3.08]
[1753957141257,3.02,182.07,182.05,5.4934]
[1753957141458,3.02,182.07,182.06,3.08]
[1753957141965,3.02,182.08,182.06,3.08]
[1753957142764,4.93220018,182.08,182.06,3.08]
[1753957143865,1.91220018,182.08,182.07,3.08]
[1753957146565,1.91220018,182.12,182.07,3.08]
[1753957146765,3.02,182.13,182.11,3.08]
[1753957146964,3.97260863,182.12,182.11,3.08]
[1753957147269,3.02,182.13,182.11,3.08]
[1753957147270,8.5114,182.13,182.11,3.08]
[1753957147473,3.02,182.13,182.11,3.08]
[1753957147770,3.02,182.13,182.11,5.4916]
[1753957147967,3.02,182.13,182.12,3.08]
[1753957148473,8.5112,182.13,182.12,3.08]
[1753957149277,12.48286852,182.13,182.12,3.08]
[1753957150276,6.99166852,182.13,182.12,3.08]
[1753957151377,12.48286852,182.13,182.12,3.08]
[1753957152077,6.99166852,182.13,182.12,3.08]
[1753957152576,14.3950687,182.13,182.12,3.08]
[1753957152875,12.48286852,182.13,182.12,3.08]
[1753957153378,14.3950687,182.13,182.12,3.08]
[1753957154672,8.9038687,182.13,182.12,3.08]
[1753957156778,5.8838687,182.13,182.12,3.08]
[1753957157279,9.0438687,182.13,182.12,3.08]
[1753957159581,7.13166852,182.13,182.12,3.08]
[1753957159782,14.5350687,182.13,182.12,3.08]
[1753957161478,9.0438687,182.13,182.12,3.08]
[1753957168190,14.5350687,182.13,182.12,3.08]
[1753957169394,9.0438687,182.13,182.12,3.08]
[1753957171392,3.97166852,182.13,182.12,3.08]
[1753957172087,7.13166852,182.13,182.12,3.08]
[1753957172591,9.0438687,182.13,182.12,3.08]
[1753957175388,5.8838687,182.13,182.12,3.08]
[1753957175995,9.0438687,182.13,182.12,3.08]
[1753957178295,3.16,182.12,182.1,2.99]
[1753957178497,7.13166852,182.11,182.1,2.99]
[1753957179398,7.13166852,182.11,182.1,8.4821]
[1753957179890,7.13166852,182.11,182.09,1.91220018]
[1753957179891,7.77877836,182.18,182.14,2.99]
[1753957180097,3.97884527,182.17,182.14,1.91220018]
[1753957180298,12.62924527,182.16,182.15,2.99]
[1753957180899,7.13884527,182.16,182.15,2.99]
[1753957183501,12.62914527,182.16,182.15,2.99]
[1753957184398,7.13884527,182.16,182.15,2.99]
[1753957195312,12.62914527,182.16,182.15,2.99]
[1753957195609,12.66914527,182.16,182.15,2.99]
[1753957195810,14.58134545,182.16,182.15,2.99]
[1753957197515,9.09104545,182.16,182.15,2.99]
[1753957200422,14.58134545,182.16,182.15,2.99]
[1753957203018,9.09104545,182.16,182.15,2.99]
[1753957203221,7.17884527,182.16,182.15,2.99]
[1753957203418,3.97884527,182.16,182.15,2.99]
[1753957205117,7.17884527,182.16,182.15,2.99]
[1753957206423,12.66914527,182.16,182.15,2.99]
[1753957206923,3.97884527,182.16,182.13,3.17]
[1753957207123,3.2,182.13,182.09,3.17]
[1753957207317,5.11220018,182.11,182.09,3.17]
[1753957208320,5.11220018,182.11,182.09,8.6622]
[1753957208520,5.11220018,182.11,182.09,5.4922]
[1753957208824,5.11220018,182.11,182.1,3.17]
[1753957209019,9.08260388,182.11,182.1,3.17]
[1753957209918,5.88260388,182.11,182.1,3.17]
[1753957211326,5.88260388,182.11,182.09,5.4922]
[1753957211525,5.11220018,182.11,182.1,3.17]
[1753957211725,9.08192653,182.11,182.1,3.17]
[1753957212225,14.57372653,182.11,182.1,3.17]
[1753957213825,9.08192653,182.11,182.1,3.17]
[1753957214027,5.88192653,182.11,182.1,3.17]
[1753957217831,9.02192653,182.11,182.1,3.17]
[1753957220229,14.51372653,182.11,182.1,3.17]
[1753957220837,3.14,182.1,182.08,2.94]
[1753957221137,5.05220018,182.09,182.08,2.94]
[1753957222243,5.05220018,182.09,182.07,2.94]
[1753957222244,5.87946328,182.09,182.07,2.94]
[1753957222430,5.05220018,182.08,182.07,2.94]
[1753957222735,10.54510018,182.08,182.07,2.94]
[1753957224533,8.6329,182.08,182.07,2.94]
[1753957224738,10.54510018,182.08,182.07,2.94]
[1753957225938,8.633,182.07,182.05,2.94]
[1753957226136,5.05220018,182.06,182.05,2.94]
[1753957226433,10.54550018,182.06,182.05,2.94]
[1753957234045,10.54550018,182.06,182.02,5.4944]
[1753957234346,1.91220018,182.03,182.02,2.94]
[1753957234542,5.05220018,182.03,182.02,2.94]
[1753957237544,1.91220018,182.05,182.02,2.94]
[1753957238245,1.91220018,182.05,182.03,2.94]
[1753957239436,1.91220018,182.05,182.04,2.94]
[1753957240843,1.91220018,182.05,182.04,8.4339]
[1753957241048,1.91220018,182.07,182.04,2.94]
[1753957241746,1.91220018,182.07,182.06,2.94]
[1753957242549,5.4928,182.08,182.06,8.4333]
[1753957242840,5.4928,182.08,182.07,2.94]
[1753957243445,7.40470018,182.09,182.07,2.94]
[1753957243748,7.40470018,182.09,182.08,2.94]
[1753957244049,1.91220018,182.09,182.08,2.94]
[1753957245646,5.14220018,182.09,182.08,2.94]
[1753957245843,9.11069285,182.09,182.08,2.94]
[1753957246038,14.60309285,182.09,182.08,2.94]
[1753957246243,5.14220018,182.09,182.08,2.94]
[1753957249956,3.23,182.1,182.08,8.7427]
[1753957250156,5.14220018,182.11,182.09,3.25]
[1753957251054,10.63420018,182.11,182.09,3.25]
[1753957251554,5.4921,182.1,182.09,3.25]
[1753957251951,8.7221,182.1,182.09,3.25]
[1753957253049,12.69706482,182.1,182.09,3.25]
[1753957255057,7.20496482,182.1,182.09,3.25]
[1753957256256,12.69706482,182.1,182.09,3.25]
[1753957259957,12.70179207,182.1,182.09,3.25]
[1753957264157,3.97969207,182.1,182.05,3.25]
[1753957264357,1.91220018,182.07,182.05,3.25]
[1753957264551,5.14220018,182.07,182.05,3.25]
[1753957267163,10.63530018,182.07,182.05,3.25]
[1753957267353,8.7231,182.07,182.05,3.25]
[1753957267553,10.63530018,182.07,182.05,3.25]
[1753957268362,5.14220018,182.07,182.05,3.25]
[1753957269571,10.63520018,182.07,182.05,3.25]
[1753957269866,3.23,182.06,182.04,3.25]
[1753957271362,8.7234,182.06,182.04,3.25]
[1753957271766,5.14220018,182.05,182.04,3.25]
[1753957278687,10.63580018,182.05,182.04,3.25]
[1753957279079,10.58580018,182.05,182.04,3.25]
[1753957279285,14.5680743,182.05,182.04,3.25]
[1753957284477,9.47587412,182.05,182.04,3.25]
[1753957284679,11.3880743,182.05,182.04,3.25]
[1753957284887,14.5680743,182.05,182.04,3.25]
[1753957289886,3.18,182.04,182.0,3.2]
[1753957290083,1.91220018,182.02,182.0,3.2]
[1753957290284,5.09220018,182.02,181.97,3.2]
[1753957290480,1.91220018,182.01,181.98,3.2]
[1753957290681,1.91220018,182.01,181.99,3.2]
[1753957291087,1.91220018,182.01,181.99,8.6953]
[1753957291287,1.91220018,182.01,182.0,3.2]
[1753957291987,5.09220018,182.01,182.0,3.2]
[1753957292590,10.58700018,182.01,182.0,3.2]
[1753957293282,10.58700018,182.01,181.95,1.91220018]
[1753957293283,5.8914085,182.01,181.95,3.2]
[1753957293491,1.91220018,181.99,181.95,3.2]
[1753957294185,7.40760018,181.99,181.96,5.4961]
[1753957294383,7.40760018,181.99,181.97,3.2]
[1753957295391,10.58760018,181.99,181.97,3.2]
[1753957295590,5.4957,181.98,181.97,3.2]
[1753957296392,5.4955,181.99,181.97,3.2]
[1753957296687,7.40770018,181.99,181.97,3.2]
[1753957296889,1.91220018,182.01,181.97,5.11220018]
[1753957297086,5.09220018,182.01,181.98,3.2]
[1753957297285,1.91220018,181.99,181.98,3.2]
[1753957297689,7.40760018,181.99,181.98,3.2]
[1753957298291,1.91220018,181.99,181.96,3.2]
[1753957298487,1.91220018,181.97,181.96,3.2]
[1753957298887,1.91220018,181.98,181.96,3.2]
[1753957299391,1.91220018,181.98,181.97,3.2]
[1753957299896,1.91220018,181.98,181.97,8.696]
[1753957300397,7.40730018,182.0,181.98,8.6955]
[1753957300696,7.40730018,182.0,181.99,3.2]
[1753957302390,10.58730018,182.0,181.99,3.2]
[1753957305600,5.09220018,182.0,181.99,3.2]
[1753957306298,10.58730018,182.0,181.99,3.2]
[1753957308203,7.40730018,182.0,181.97,5.4959]
[1753957308502,7.40730018,182.0,181.98,3.14]
[1753957308503,3.24,181.99,181.98,3.14]
[1753957308896,3.24,182.01,181.93,0.95641181]
[1753957309095,3.24,182.01,181.94,3.14]
[1753957309297,3.24,182.01,181.96,5.4963]
[1753957309503,3.24,181.99,181.97,3.14]
[1753957309705,3.24,182.04,181.97,3.14]
[1753957310002,1.91220018,181.98,181.97,3.14]
[1753957310198,1.91220018,181.98,181.97,8.636]
[1753957310603,1.91220018,181.98,181.97,3.14]
[1753957310803,8.7353,182.0,181.97,3.14]
[1753957311005,1.91220018,181.99,181.97,3.14]
[1753957311303,7.40750018,182.0,181.98,3.14]
[1753957316513,5.4954,181.99,181.98,3.14]
[1753957317211,5.4954,181.99,181.96,3.14]
[1753957317911,5.4954,181.99,181.97,5.496]
[1753957318414,5.4954,181.99,181.98,3.14]
[1753957318912,3.24,181.98,181.97,3.14]
[1753957319108,5.15220018,181.98,181.97,3.14]
[1753957319308,1.91220018,181.98,181.97,3.14]
[1753957320006,5.496,181.97,181.93,2.86861199]
[1753957320211,8.736,181.97,181.93,2.86861199]
[1753957320612,5.496,181.97,181.94,8.6366]
[1753957320816,5.496,181.97,181.95,3.14]
[1753957321018,1.91220018,182.0,181.95,5.05220018]
[1753957321209,1.91220018,182.0,181.98,3.14]
[1753957321713,7.40740018,182.0,181.98,3.14]
[1753957322019,10.64740018,182.0,181.98,3.14]
[1753957323813,8.7352,182.0,181.98,3.14]
[1753957324016,1.91220018,181.99,181.98,3.14]
[1753957324315,1.91220018,181.99,181.94,1.91220018]
[1753957324515,1.91220018,181.97,181.94,1.91220018]
[1753957325016,1.91220018,181.97,181.95,5.4964]
[1753957325213,1.91220018,181.99,181.96,3.14]
[1753957326711,1.91220018,181.99,181.97,5.4958]
[1753957326910,1.91220018,181.99,181.98,3.14]
[1753957327114,10.64760018,181.99,181.98,3.14]
[1753957327414,1.91220018,181.99,181.98,3.14]
[1753957327817,5.15220018,181.99,181.98,3.14]
[1753957329018,1.91220018,181.99,181.98,8.6357]
[1753957329413,1.91220018,181.99,181.98,3.14]
[1753957331718,5.15220018,181.99,181.98,3.14]
[1753957332112,9.15932415,181.99,181.98,3.14]
[1753957332309,14.65472415,181.99,181.98,3.14]
[1753957332507,9.15932415,181.99,181.98,3.14]
[1753957332921,5.91932415,181.99,181.98,3.14]
[1753957333720,5.91932415,181.99,181.98,8.6357]
[1753957334720,7.8607791,182.04,181.98,5.05220018]
[1753957334922,5.92242557,182.03,181.99,3.14]
[1753957335123,4.01022539,182.02,181.99,3.14]
[1753957335321,1.91220018,182.03,182.01,5.4947]
[1753957335525,4.93220018,182.03,182.02,3.02]
[1753957335715,14.43692835,182.03,182.02,3.02]
[1753957337119,11.41692835,182.03,182.0,3.02]
[1753957337317,3.02,182.01,181.99,5.4951]
[1753957337522,4.01052817,182.0,181.99,5.4951]
[1753957337915,4.01052817,182.0,181.99,8.5151]
[1753957339130,8.5146,182.02,182.0,3.02]
[1753957339443,4.01092784,182.01,182.0,3.02]
[1753957340335,4.01092784,182.01,182.0,8.5151]
[1753957341738,4.01092784,182.01,182.0,3.02]
[1753957341935,7.03092784,182.01,182.0,3.02]
[1753957342736,12.52572784,182.01,182.0,3.02]
[1753957343032,8.94312802,182.01,181.96,1.91220018]
[1753957343238,14.43832802,182.0,181.99,3.02]
[1753957343437,3.02,181.99,181.95,3.02]
[1753957343638,3.02,181.97,181.95,3.02]
[1753957343837,3.02,181.97,181.95,8.5165]
[1753957344032,4.93220018,181.97,181.96,3.02]
[1753957344231,8.94309851,181.97,181.96,3.02]
[1753957344840,7.03089833,181.97,181.96,3.02]
[1753957345737,7.03089833,181.97,181.96,8.5163]
[1753957346237,4.01089833,181.97,181.96,8.5163]
[1753957346840,12.52689833,181.97,181.96,3.02]
[1753957347541,7.03089833,181.97,181.96,3.02]
[1753957348044,8.5153,182.0,181.96,3.02]
[1753957348234,3.99960547,181.99,181.96,3.02]
[1753957348434,3.99960547,181.98,181.97,5.4957]
[1753957348638,3.02,182.0,181.95,2.99139219]
[1753957348834,3.99927462,181.99,181.96,3.02]
[1753957349042,3.02,182.0,181.96,3.02]
[1753957349242,3.99941178,181.99,181.96,3.02]
[1753957349438,8.5151,182.0,181.98,3.02]
[1753957349641,3.99942784,181.99,181.98,3.02]
[1753957350344,7.01942784,181.99,181.98,3.02]
[1753957353936,7.01942784,181.99,181.98,8.5157]
[1753957354143,3.99942784,181.99,181.98,8.5157]
[1753957357053,3.02,182.04,182.02,3.02]
[1753957357252,3.99912096,182.03,182.02,3.02]
[1753957357754,7.01912096,182.03,182.02,8.5145]
[1753957358953,7.01912096,182.03,182.02,3.02]
[1753957359858,3.99912096,182.03,182.02,8.5145]
[1753957360055,3.02,182.06,182.02,8.5145]
[1753957360249,7.01785761,182.05,182.03,3.02]
[1753957360445,3.99785761,182.04,182.03,3.02]
[1753957360852,7.01785761,182.04,182.03,3.02]
[1753957361851,7.01785761,182.04,182.03,8.5142]
[1753957363557,7.01785761,182.04,182.03,3.02]
[1753957365451,12.51175761,182.04,182.03,3.02]
[1753957366455,7.01785761,182.04,182.03,3.02]
[1753957368059,12.51175761,182.04,182.03,3.02]
[1753957373762,5.4945,182.02,182.01,1.91304359]
[1753957373963,8.7245,182.02,182.01,3.13]
[1753957374260,3.23,182.03,182.01,3.13]
[1753957374461,8.7243,182.03,182.01,3.13]
[1753957377556,4.00171914,182.02,182.01,3.13]
[1753957380060,9.49621914,182.02,182.01,3.13]
[1753957380261,12.72621914,182.02,182.01,3.13]
[1753957382558,12.72621914,182.02,181.9,10.9962]
[1753957382559,3.23,182.01,181.9,3.13]
[1753957382767,1.91304359,181.96,181.93,3.13]
[1753957383064,5.4967,181.95,181.93,3.13]
[1753957383257,3.23,181.97,181.93,3.13]
[1753957383457,9.14509304,181.96,181.93,3.13]
[1753957383665,5.4969,181.94,181.93,3.13]
[1753957388367,8.7267,181.95,181.93,3.13]
[1753957393065,5.4967,181.95,181.91,5.4977]
[1753957393370,3.23,181.94,181.93,3.13]
[1753957396672,8.7269,181.94,181.93,3.13]
[1753957396873,3.23,181.94,181.93,3.13]
[1753957398574,8.7271,181.94,181.9,9.44667321]
[1753957398770,3.12,181.93,181.91,3.25]
[1753957401078,8.6173,181.93,181.91,3.25]
[1753957404977,8.6173,181.93,181.92,3.25]
[1753957405980,5.4973,181.93,181.92,3.25]
[1753957407284,1.91506496,181.98,181.92,3.25]
[1753957407481,3.12,181.96,181.94,3.25]
[1753957407781,5.4965,181.96,181.94,3.25]
[1753957407981,5.03506496,181.98,181.94,3.25]
[1753957408178,3.12,181.98,181.96,3.25]
[1753957408576,5.4962,181.97,181.96,3.25]
[1753957408884,8.6162,181.97,181.96,3.25]
[1753957409682,3.12,181.97,181.96,3.25]
[1753957410586,8.616,181.97,181.95,1.91506496]
[1753957410883,3.12,181.96,181.95,1.91506496]
[1753957412584,5.496,181.97,181.96,3.25]